bitfinex/quotes_BTCUSD_20241107
["timestamp","ask_amount","ask_price","bid_price","bid_amount"]
[1730946652712,2.54419328,75301.0,75300.0,0.000833]
[1730946652930,2.54219328,75301.0,75300.0,0.000833]
[1730946653138,2.52819328,75301.0,75300.0,0.000833]
[1730946653594,2.53019328,75301.0,75300.0,0.000833]
[1730946653812,2.37334102,75301.0,75300.0,0.000833]
[1730946654019,2.38734102,75301.0,75300.0,0.000833]
[1730946654254,2.38634102,75301.0,75300.0,0.000833]
[1730946654891,1.83654102,75301.0,75300.0,0.000833]
[1730946655329,1.514,75301.0,75300.0,0.000833]
[1730946655570,1.514,75301.0,75300.0,0.00913192]
[1730946655807,1.5,75301.0,75300.0,0.00913192]
[1730946656281,1.5,75301.0,75300.0,0.000833]
[1730946656495,1.5,75301.0,75300.0,0.00913195]
[1730946656700,1.6,75301.0,75300.0,0.00913195]
[1730946657340,1.6,75301.0,75300.0,0.02204528]
[1730946658398,1.6,75301.0,75300.0,0.01577076]
[1730946659481,1.6,75301.0,75300.0,0.01991998]
[1730946659904,1.6,75301.0,75300.0,0.01991945]
[1730946660579,1.60004,75301.0,75300.0,0.01991945]
[1730946661758,1.67504,75301.0,75300.0,0.01991945]
[1730946662275,1.85318102,75301.0,75300.0,0.000833]
[1730946662515,1.85318102,75301.0,75300.0,0.01991992]
[1730946663011,1.85318102,75301.0,75300.0,0.01162126]
[1730946663717,1.85318102,75301.0,75300.0,0.00498233]
[1730946665325,1.67504,75301.0,75300.0,0.01162193]
[1730946665571,1.60004,75301.0,75300.0,0.01162193]
[1730946665796,1.60004,75301.0,75300.0,0.01162176]
[1730946666472,1.60004,75301.0,75300.0,0.01992069]
[1730946666943,1.60004,75301.0,75300.0,0.01162176]
[1730946667176,1.73228102,75301.0,75300.0,0.01162176]
[1730946668290,1.73728102,75301.0,75300.0,0.01162176]
[1730946668730,1.81768102,75301.0,75300.0,0.00498252]
[1730946668955,1.81768102,75301.0,75300.0,0.01162235]
[1730946669482,1.86488102,75301.0,75300.0,0.01162235]
[1730946670359,2.01973328,75301.0,75300.0,0.01162235]
[1730946670580,2.35988102,75301.0,75300.0,0.01162235]
[1730946670807,2.36488102,75301.0,75300.0,0.01162235]
[1730946672754,2.36488102,75301.0,75300.0,0.01992177]
[1730946672987,2.36488102,75301.0,75300.0,0.01992174]
[1730946673440,2.36488102,75301.0,75300.0,0.01162235]
[1730946674546,2.54682791,75301.0,75300.0,0.01162235]
[1730946674786,0.68,75290.0,75289.0,0.00625768]
[1730946675001,0.36104102,75290.0,75289.0,0.01704768]
[1730946675245,0.36104102,75290.0,75289.0,0.01908999]
[1730946675440,1.86104102,75290.0,75289.0,0.01908999]
[1730946677329,0.1,75289.0,75282.0,0.00622458]
[1730946677552,0.5,75284.0,75283.0,0.00830022]
[1730946677776,0.63224102,75284.0,75283.0,0.00830022]
[1730946678234,2.13224102,75284.0,75283.0,0.00830022]
[1730946679608,2.16190348,75284.0,75283.0,0.00830022]
[1730946682788,2.16190348,75284.0,75269.0,0.0405654]
[1730946683003,2.02966246,75284.0,75283.0,0.00830061]
[1730946683216,2.02966246,75284.0,75283.0,0.00993492]
[1730946683454,2.02966246,75284.0,75269.0,0.0405654]
[1730946683688,2.02966246,75284.0,75283.0,0.00830062]
[1730946683918,2.02966246,75284.0,75279.0,0.00622331]
[1730946684148,2.02966246,75284.0,75280.0,0.01452393]
[1730946684837,2.02966246,75284.0,75281.0,0.01494111]
[1730946685068,2.02966246,75284.0,75282.0,0.02116442]
[1730946685314,1.5,75284.0,75282.0,0.02116442]
[1730946685531,0.03054108,75295.0,75283.0,0.02457755]
[1730946685791,0.1978931,75290.0,75284.0,0.00664049]
[1730946686011,1.5,75289.0,75285.0,0.00664049]
[1730946686229,1.5,75289.0,75286.0,0.1271]
[1730946686673,1.5,75289.0,75287.0,0.01909067]
[1730946687109,0.001666,75300.0,75287.0,0.01909067]
[1730946687332,0.001666,75300.0,75298.0,0.15485226]
[1730946687596,0.19718505,75301.0,75300.0,0.0502]
[1730946687833,0.19718505,75301.0,75300.0,0.19244102]
[1730946688071,0.001666,75306.0,75301.0,0.005]
[1730946688299,0.001666,75306.0,75302.0,0.01494111]
[1730946688524,0.001666,75306.0,75302.0,0.0454228]
[1730946688994,0.001666,75306.0,75303.0,0.01909067]
[1730946689642,0.001666,75306.0,75304.0,0.01909067]
[1730946691217,0.001666,75306.0,75299.0,0.09828523]
[1730946691443,1.501666,75306.0,75304.0,0.01908238]
[1730946691658,1.501666,75306.0,75304.0,0.03578485]
[1730946693010,1.501666,75306.0,75304.0,0.01908238]
[1730946693222,1.501666,75306.0,75304.0,0.02526621]
[1730946693458,1.501666,75306.0,75304.0,0.02526463]
[1730946694076,1.501666,75306.0,75304.0,0.01908238]
[1730946694533,1.501666,75306.0,75304.0,0.01908287]
[1730946695233,1.501666,75306.0,75304.0,0.02526434]
[1730946695670,1.501666,75306.0,75304.0,0.01908287]
[1730946696637,1.501666,75306.0,75304.0,0.02526434]
[1730946697076,1.501666,75306.0,75304.0,0.01908287]
[1730946697285,1.501666,75306.0,75304.0,0.02526434]
[1730946698043,1.501666,75306.0,75304.0,0.01908287]
[1730946698478,1.501666,75306.0,75300.0,0.005]
[1730946698693,1.501666,75306.0,75304.0,0.01908191]
[1730946698939,1.501666,75306.0,75304.0,0.02525889]
[1730946699425,1.501666,75306.0,75304.0,0.01908191]
[1730946700944,1.501666,75306.0,75304.0,0.01078543]
[1730946701378,1.501666,75306.0,75304.0,0.01908191]
[1730946701604,1.501666,75306.0,75304.0,0.01078543]
[1730946702052,0.001666,75306.0,75304.0,0.01078651]
[1730946702485,1.501666,75305.0,75304.0,0.01078678]
[1730946703980,1.501666,75305.0,75304.0,0.00414876]
[1730946704459,1.73390702,75305.0,75301.0,0.000833]
[1730946704701,0.23224102,75304.0,75301.0,0.000833]
[1730946706006,1.6,75302.0,75301.0,0.000833]
[1730946706219,1.73224102,75302.0,75301.0,0.000833]
[1730946706762,2.23224102,75302.0,75301.0,0.000833]
[1730946706978,2.31364102,75302.0,75301.0,0.000833]
[1730946708231,2.31364102,75302.0,75301.0,0.00498263]
[1730946708972,2.31364102,75302.0,75301.0,0.000833]
[1730946709408,2.42644039,75302.0,75301.0,0.000833]
[1730946710471,2.42844039,75302.0,75301.0,0.000833]
[1730946710686,2.44244039,75302.0,75301.0,0.000833]
[1730946711118,2.53823839,75302.0,75301.0,0.000833]
[1730946711286,2.40544039,75302.0,75301.0,0.000833]
[1730946711507,2.56623839,75302.0,75301.0,0.000833]
[1730946711741,2.55168316,75302.0,75301.0,0.000833]
[1730946711930,2.41944039,75302.0,75301.0,0.000833]
[1730946712129,2.58923839,75302.0,75301.0,0.000833]
[1730946712697,2.57523839,75302.0,75301.0,0.000833]
[1730946713133,2.58923839,75302.0,75301.0,0.000833]
[1730946713327,2.70748116,75302.0,75301.0,0.000833]
[1730946713537,2.69348116,75302.0,75301.0,0.000833]
[1730946713747,2.70748116,75302.0,75301.0,0.000833]
[1730946715304,2.70748116,75302.0,75277.0,0.00664105]
[1730946715305,0.7454,75290.0,75277.0,0.00664105]
[1730946715526,1.14687758,75290.0,75271.0,0.1978931]
[1730946715759,1.14687758,75290.0,75272.0,0.00664123]
[1730946715895,2.53249328,75290.0,75273.0,0.00664123]
[1730946716277,2.53249328,75290.0,75271.0,0.1978931]
[1730946716500,2.53249328,75290.0,75272.0,0.00415082]
[1730946716724,2.53249328,75290.0,75273.0,0.01079227]
[1730946716946,2.37564102,75290.0,75274.0,0.00415082]
[1730946717155,2.53049328,75290.0,75275.0,0.00415082]
[1730946717342,2.53049328,75290.0,75276.0,0.00415082]
[1730946717567,2.53249328,75290.0,75277.0,0.00415082]
[1730946717776,2.53249328,75290.0,75271.0,0.1978931]
[1730946717986,2.53249328,75290.0,75272.0,0.00664121]
[1730946718196,2.53049328,75290.0,75273.0,0.00664121]
[1730946718400,2.53249328,75290.0,75274.0,0.00664121]
[1730946718624,2.53249328,75290.0,75275.0,0.00664121]
[1730946718840,2.53049328,75290.0,75276.0,0.00664121]
[1730946719071,2.54449328,75290.0,75271.0,0.1978931]
[1730946719293,2.55849328,75290.0,75272.0,0.00664117]
[1730946719513,2.55849328,75290.0,75273.0,0.00664117]
[1730946719751,2.37177308,75290.0,75273.0,0.0791]
[1730946719974,2.37177308,75290.0,75274.0,0.00664108]
[1730946720453,2.38577308,75290.0,75275.0,0.00664108]
[1730946720673,2.35777308,75290.0,75276.0,0.00664108]
[1730946720896,2.35777308,75290.0,75277.0,0.00664108]
[1730946721110,2.35777308,75290.0,75278.0,0.00664108]
[1730946721334,2.26297308,75290.0,75279.0,0.00664108]
[1730946721552,1.53073206,75290.0,75289.0,0.00498342]
[1730946721836,1.5,75290.0,75289.0,0.01162354]
[1730946722255,1.5,75290.0,75289.0,0.01162284]
[1730946722930,1.6,75290.0,75289.0,0.01162284]
[1730946724962,1.5,75290.0,75289.0,0.09432284]
[1730946725414,1.5,75290.0,75289.0,0.116715]
[1730946725853,1.5,75290.0,75289.0,0.1167135]
[1730946726498,1.5,75290.0,75289.0,0.12289042]
[1730946727253,0.001666,75305.0,75290.0,0.005]
[1730946727496,0.1978931,75301.0,75298.0,0.15485226]
[1730946727718,0.001666,75305.0,75301.0,0.015]
[1730946727945,0.001666,75305.0,75301.0,0.0645]
[1730946728835,0.001666,75305.0,75301.0,0.08358822]
[1730946729062,0.001666,75305.0,75301.0,0.0495]
[1730946729318,0.001666,75305.0,75301.0,0.01908236]
[1730946729768,0.001666,75305.0,75301.0,0.02408236]
[1730946730456,0.001666,75305.0,75301.0,0.17141162]
[1730946730899,0.1995591,75305.0,75301.0,0.16641162]
[1730946731138,0.001666,75305.0,75301.0,0.17641162]
[1730946733418,0.001666,75305.0,75301.0,0.84315401]
[1730946734044,0.001666,75305.0,75302.0,0.24331878]
[1730946734480,0.001666,75305.0,75303.0,0.01908236]
[1730946734728,0.001666,75305.0,75302.0,0.22423642]
[1730946734939,0.001666,75305.0,75303.0,0.01908264]
[1730946735378,0.001666,75305.0,75304.0,0.01908264]
[1730946735554,0.001666,75305.0,75304.0,0.04353107]
[1730946736146,0.001666,75305.0,75304.0,0.03689385]
[1730946736345,0.001666,75305.0,75304.0,0.04353141]
[1730946738240,0.001666,75306.0,75305.0,0.03]
[1730946738469,0.016626,75307.0,75306.0,0.16251452]
[1730946738675,0.1978931,75319.0,75308.0,0.04]
[1730946738892,0.1978931,75319.0,75308.0,0.39003642]
[1730946739357,0.1978931,75319.0,75308.0,0.42228858]
[1730946739784,0.1978931,75319.0,75308.0,0.46180453]
[1730946740422,0.1978931,75319.0,75308.0,0.44863674]
[1730946740628,0.1978931,75319.0,75308.0,0.40911327]
[1730946742180,0.1978931,75319.0,75308.0,1.07585566]
[1730946743122,0.1978931,75319.0,75308.0,1.33070761]
[1730946743329,1.5,75326.0,75308.0,1.3348536]
[1730946743591,0.1978931,75318.0,75317.0,0.1482]
[1730946743801,0.1978931,75318.0,75317.0,1.15478429]
[1730946744113,0.1978931,75327.0,75326.0,0.015]
[1730946744253,0.1978931,75327.0,75326.0,0.16631648]
[1730946744688,1.5,75334.0,75327.0,0.005]
[1730946744871,1.5,75334.0,75328.0,0.15131648]
[1730946745070,1.5,75334.0,75329.0,0.03570711]
[1730946745286,1.5,75334.0,75329.0,0.16794813]
[1730946745792,1.5,75334.0,75329.0,0.01907546]
[1730946746698,1.5,75334.0,75326.0,0.005]
[1730946746935,1.5,75334.0,75329.0,0.00414697]
[1730946747156,1.5,75334.0,75329.0,0.1513171]
[1730946747419,1.5,75334.0,75329.0,0.32116936]
[1730946747666,0.000752,75349.0,75348.0,0.015]
[1730946747918,0.000752,75349.0,75348.0,0.85567073]
[1730946748159,0.000752,75349.0,75348.0,0.96157073]
[1730946748363,0.000752,75349.0,75348.0,0.97143299]
[1730946748609,0.000752,75349.0,75348.0,0.81658073]
[1730946748832,1.5,75378.0,75358.0,0.01]
[1730946749070,0.0350922,75370.0,75358.0,0.01907608]
[1730946749284,0.1978931,75372.0,75358.0,0.01907608]
[1730946749526,0.079134,75360.0,75359.0,0.01907608]
[1730946749995,0.36622728,75360.0,75359.0,0.01907608]
[1730946750205,1.86622728,75360.0,75359.0,0.01907608]
[1730946750425,1.96622728,75360.0,75359.0,0.01907608]
[1730946750642,1.99704262,75360.0,75359.0,0.01907608]
[1730946750864,1.84219036,75360.0,75359.0,0.01907608]
[1730946751298,1.84719036,75360.0,75359.0,0.01907608]
[1730946752898,1.679134,75360.0,75359.0,0.01907608]
[1730946753328,1.600834,75360.0,75359.0,0.01907293]
[1730946754426,1.500834,75360.0,75359.0,0.01907293]
[1730946754648,1.500834,75360.0,75351.0,0.005]
[1730946754862,1.500834,75360.0,75348.0,0.005]
[1730946755089,1.500834,75360.0,75342.0,0.01]
[1730946755090,1.500834,75360.0,75350.0,0.005]
[1730946755972,1.500834,75360.0,75339.0,0.66674239]
[1730946755973,0.1978931,75359.0,75342.0,0.005]
[1730946756197,0.1978931,75359.0,75344.0,0.005]
[1730946756422,0.1978931,75359.0,75343.0,0.22940081]
[1730946756637,0.1978931,75359.0,75344.0,0.005]
[1730946756855,0.1978931,75359.0,75343.0,0.03650771]
[1730946757086,0.1978931,75359.0,75344.0,0.01907045]
[1730946757988,0.000834,75360.0,75345.0,0.22940081]
[1730946758198,0.1978931,75357.0,75345.0,0.03150771]
[1730946758411,1.5,75356.0,75345.0,0.03150771]
[1730946758654,1.5,75356.0,75346.0,0.03150771]
[1730946758882,1.5,75356.0,75343.0,0.005]
[1730946758883,0.1978931,75357.0,75347.0,0.01907045]
[1730946759102,0.000834,75360.0,75347.0,0.01907045]
[1730946759747,1.5,75355.0,75348.0,0.03150771]
[1730946759985,1.5,75355.0,75349.0,0.01907046]
[1730946760453,1.5,75355.0,75350.0,0.03150771]
[1730946760668,1.5,75355.0,75351.0,0.01243725]
[1730946761098,1.5,75355.0,75352.0,0.01907045]
[1730946761303,1.5,75355.0,75353.0,0.0066332]
[1730946761741,1.5,75355.0,75354.0,0.01907045]
[1730946761970,0.000834,75360.0,75354.0,0.01907045]
[1730946762200,0.1279,75359.0,75354.0,0.01907045]
[1730946762432,0.1,75358.0,75355.0,0.01907045]
[1730946762670,0.1,75358.0,75356.0,0.01907045]
[1730946762880,1.5,75357.0,75356.0,0.01907045]
[1730946764163,1.6,75357.0,75356.0,0.01907045]
[1730946764378,1.6,75357.0,75356.0,0.01907318]
[1730946764597,1.73224102,75357.0,75356.0,0.01907318]
[1730946765521,1.86948379,75357.0,75356.0,0.01907318]
[1730946765737,1.82214102,75357.0,75356.0,0.01907318]
[1730946766175,1.87714102,75357.0,75356.0,0.01907318]
[1730946766394,2.00984202,75357.0,75356.0,0.01907318]
[1730946767055,2.00984202,75357.0,75356.0,0.01078049]
[1730946767268,2.00984202,75357.0,75351.0,0.000833]
[1730946767269,0.77271,75352.0,75351.0,0.000833]
[1730946767492,1.18770328,75352.0,75351.0,0.00498079]
[1730946767718,1.05499328,75352.0,75351.0,0.00498079]
[1730946767929,0.515,75341.0,75340.0,0.00601353]
[1730946768145,0.005,75338.0,75312.0,0.01320786]
[1730946768359,0.005,75338.0,75310.0,0.005]
[1730946768360,0.1,75333.0,75329.0,0.1978931]
[1730946768576,0.23224102,75333.0,75310.0,0.01821603]
[1730946768800,0.23224102,75333.0,75319.0,0.1978931]
[1730946768993,0.1,75330.0,75313.0,0.01321603]
[1730946769204,0.1,75330.0,75314.0,0.20618903]
[1730946769438,0.1,75330.0,75317.0,0.005]
[1730946769656,0.2978931,75330.0,75318.0,0.14545705]
[1730946769894,0.2978931,75330.0,75320.0,0.01321603]
[1730946770112,0.1978931,75330.0,75321.0,0.02151196]
[1730946770339,0.1978931,75330.0,75322.0,0.00829593]
[1730946770556,1.5,75331.0,75322.0,0.00829593]
[1730946770773,1.5,75331.0,75319.0,0.01321603]
[1730946770774,1.5,75331.0,75323.0,0.00829593]
[1730946771658,0.1978931,75349.0,75333.0,0.005]
[1730946771874,0.1978931,75337.0,75334.0,0.1405345]
[1730946772106,1.50199185,75348.0,75334.0,0.1405345]
[1730946772320,1.50199185,75348.0,75335.0,0.00829348]
[1730946772757,1.5,75348.0,75336.0,0.00829348]
[1730946773448,1.5,75348.0,75334.0,0.14544782]
[1730946773449,1.5,75348.0,75337.0,0.00829348]
[1730946774127,1.5,75348.0,75334.0,0.13224102]
[1730946774128,1.5,75348.0,75338.0,0.00829348]
[1730946774680,1.5,75348.0,75333.0,0.66674239]
[1730946774681,1.5,75348.0,75339.0,0.00829348]
[1730946775114,1.5,75348.0,75340.0,0.00829348]
[1730946775336,1.5,75348.0,75341.0,0.00829348]
[1730946775548,1.5,75348.0,75342.0,0.00829348]
[1730946775765,1.5,75348.0,75343.0,0.00829348]
[1730946776189,1.5,75348.0,75344.0,0.00829348]
[1730946776396,1.5,75348.0,75345.0,0.00829348]
[1730946776623,1.5,75348.0,75346.0,0.00829348]
[1730946776840,1.5,75348.0,75347.0,0.00829348]
[1730946777284,1.5,75348.0,75347.0,0.01492822]
[1730946777713,1.5,75348.0,75347.0,0.0207933]
[1730946777975,1.5,75348.0,75347.0,0.01492822]
[1730946778427,1.73224102,75348.0,75347.0,0.01492822]
[1730946778651,1.76703671,75348.0,75347.0,0.01492822]
[1730946778867,1.76703671,75348.0,75347.0,0.00663474]
[1730946779309,1.84273671,75348.0,75347.0,0.00663474]
[1730946779522,0.5,75340.0,75335.0,0.000834]
[1730946779744,0.65485226,75340.0,75339.0,0.1978931]
[1730946779957,0.65485226,75340.0,75336.0,0.0082951]
[1730946780167,0.65485226,75340.0,75339.0,0.01244264]
[1730946780810,2.15485226,75340.0,75339.0,0.01244264]
[1730946781025,2.15485226,75340.0,75339.0,0.01078361]
[1730946781472,1.5,75340.0,75339.0,0.01078361]
[1730946781695,1.5,75340.0,75339.0,0.01907839]
[1730946781921,1.65485226,75340.0,75335.0,0.000834]
[1730946782144,1.65485226,75340.0,75339.0,0.00414737]
[1730946782359,1.65485226,75340.0,75339.0,0.01244202]
[1730946782360,1.5,75340.0,75339.0,0.01244202]
[1730946782794,1.5,75340.0,75339.0,0.01078316]
[1730946783224,1.5,75340.0,75339.0,0.01907758]
[1730946783535,1.5,75340.0,75339.0,0.01907765]
[1730946784435,1.5,75340.0,75339.0,0.01078316]
[1730946784674,1.65485226,75340.0,75339.0,0.01078316]
[1730946785351,1.5,75340.0,75339.0,0.00414737]
[1730946785586,1.5,75340.0,75335.0,0.000834]
[1730946785803,1.5,75340.0,75339.0,0.00414735]
[1730946786028,1.5,75340.0,75336.0,0.00414735]
[1730946786242,1.5,75340.0,75337.0,0.00663573]
[1730946786733,1.5,75340.0,75338.0,0.00414735]
[1730946786950,1.5,75340.0,75339.0,0.00414735]
[1730946787594,1.5,75340.0,75339.0,0.01078312]
[1730946787828,1.5,75340.0,75339.0,0.01161712]
[1730946790749,1.65485226,75340.0,75339.0,0.01161712]
[1730946790963,1.79209328,75340.0,75339.0,0.00498135]
[1730946791185,1.94289328,75340.0,75339.0,0.00498135]
[1730946791405,1.94289328,75340.0,75339.0,0.000834]
[1730946791406,2.01609328,75340.0,75339.0,0.000834]
[1730946792493,2.02609328,75340.0,75339.0,0.000834]
[1730946792900,0.515,75336.0,75335.0,0.000834]
[1730946793136,0.83044102,75336.0,75335.0,0.000834]
[1730946793361,0.83244102,75336.0,75335.0,0.000834]
[1730946793587,2.33244102,75336.0,75335.0,0.000834]
[1730946794674,2.33044102,75336.0,75335.0,0.000834]
[1730946795148,2.33244102,75336.0,75335.0,0.000834]
[1730946796565,2.45830522,75336.0,75335.0,0.000834]
[1730946796806,2.48843938,75336.0,75335.0,0.000834]
[1730946797219,2.66629164,75336.0,75335.0,0.000834]
[1730946797451,0.33515226,75317.0,75314.0,0.1978931]
[1730946797690,0.23224102,75316.0,75314.0,0.1978931]
[1730946797929,0.005,75315.0,75314.0,0.1978931]
[1730946798172,0.5,75311.0,75302.0,0.000833]
[1730946798425,1.63224102,75310.0,75309.0,0.1978931]
[1730946798671,1.63224102,75310.0,75303.0,0.00414929]
[1730946799171,1.63224102,75310.0,75304.0,0.00414929]
[1730946799399,1.63224102,75310.0,75305.0,0.00414929]
[1730946799651,0.25685226,75306.0,75305.0,0.00414929]
[1730946799898,0.51669328,75306.0,75305.0,0.00414929]
[1730946800134,2.16448428,75306.0,75305.0,0.00414929]
[1730946800367,0.617,75303.0,75302.0,0.000833]
[1730946800599,0.73924102,75303.0,75302.0,0.000833]
[1730946800814,1.00427979,75303.0,75302.0,0.000833]
[1730946801043,1.00227979,75303.0,75302.0,0.000833]
[1730946801492,2.51227979,75303.0,75302.0,0.000833]
[1730946801693,2.51427979,75303.0,75302.0,0.000833]
[1730946802530,2.53727979,75303.0,75302.0,0.000833]
[1730946802740,0.502,75290.0,75289.0,0.000833]
[1730946802953,0.88709328,75290.0,75289.0,0.000833]
[1730946803618,2.38709328,75290.0,75289.0,0.000833]
[1730946803860,2.46939328,75290.0,75289.0,0.000833]
[1730946804073,2.46739328,75290.0,75289.0,0.000833]
[1730946806309,2.59963605,75290.0,75289.0,0.000833]
[1730946806734,2.60163605,75290.0,75289.0,0.000833]
[1730946807162,2.46939328,75290.0,75289.0,0.000833]
[1730946807615,2.46739328,75290.0,75289.0,0.000833]
[1730946808664,2.49687583,75290.0,75289.0,0.000833]
[1730946809343,2.46739328,75290.0,75289.0,0.000833]
[1730946810464,2.31254102,75290.0,75289.0,0.000833]
[1730946812093,2.23224102,75290.0,75289.0,0.000833]
[1730946812540,2.26274565,75290.0,75289.0,0.000833]
[1730946812741,2.27774565,75290.0,75289.0,0.000833]
[1730946812974,0.6,75276.0,75275.0,0.001502]
[1730946813194,0.88709328,75276.0,75275.0,0.001502]
[1730946813390,1.01489328,75276.0,75275.0,0.001502]
[1730946813606,1.02689328,75276.0,75275.0,0.001502]
[1730946814023,0.239853,75271.0,75270.0,0.001502]
[1730946814240,0.23924102,75271.0,75270.0,0.001502]
[1730946814461,0.23724102,75271.0,75270.0,0.001502]
[1730946814676,1.73724102,75271.0,75270.0,0.001502]
[1730946815083,1.73924102,75271.0,75270.0,0.001502]
[1730946815293,1.87209402,75271.0,75270.0,0.001502]
[1730946815724,1.91889668,75271.0,75270.0,0.001502]
[1730946816147,1.73724102,75271.0,75270.0,0.001502]
[1730946817000,1.73924102,75271.0,75270.0,0.001502]
[1730946817427,1.88209402,75271.0,75270.0,0.001502]
[1730946817632,2.05994628,75271.0,75270.0,0.001502]
[1730946817854,0.5,75264.0,75263.0,0.001502]
[1730946818089,1.13775828,75264.0,75263.0,0.001502]
[1730946818302,1.00489328,75264.0,75263.0,0.001502]
[1730946818717,2.50489328,75264.0,75263.0,0.001502]
[1730946818943,2.53916559,75264.0,75263.0,0.001502]
[1730946819156,2.80427336,75264.0,75263.0,0.001502]
[1730946819384,2.67203059,75264.0,75263.0,0.001502]
[1730946819580,2.63775828,75264.0,75263.0,0.001502]
[1730946819999,2.53563164,75264.0,75263.0,0.001502]
[1730946821272,2.66849664,75264.0,75263.0,0.001502]
[1730946821742,2.8233489,75264.0,75263.0,0.001502]
[1730946821947,2.80073941,75264.0,75263.0,0.001502]
[1730946822581,2.95559167,75264.0,75263.0,0.001502]
[1730946822787,2.80073941,75264.0,75263.0,0.001502]
[1730946823138,2.95559167,75264.0,75263.0,0.001502]
[1730946823345,2.98986398,75264.0,75263.0,0.001502]
[1730946823556,2.66849664,75264.0,75263.0,0.001502]
[1730946823818,2.27297938,75264.0,75263.0,0.001502]
[1730946824028,2.27997938,75264.0,75263.0,0.001502]
[1730946824227,2.27297938,75264.0,75263.0,0.001502]
[1730946824443,2.26297938,75264.0,75263.0,0.001502]
[1730946827645,2.39522215,75264.0,75263.0,0.001502]
[1730946827859,2.55007441,75264.0,75263.0,0.001502]
[1730946828275,2.41783164,75264.0,75263.0,0.001502]
[1730946829572,2.42483164,75264.0,75263.0,0.001502]
[1730946829789,2.72454348,75264.0,75263.0,0.001502]
[1730946830009,2.79674348,75264.0,75263.0,0.001502]
[1730946830230,2.71819122,75264.0,75263.0,0.001502]
[1730946830676,2.73847614,75264.0,75263.0,0.001502]
[1730946830891,2.71819122,75264.0,75263.0,0.001502]
[1730946831331,2.71823122,75264.0,75263.0,0.001502]
[1730946832197,2.84234512,75264.0,75263.0,0.001502]
[1730946832404,2.68749286,75264.0,75263.0,0.001502]
[1730946833469,2.73581419,75264.0,75263.0,0.001502]
[1730946833888,2.93180303,75264.0,75263.0,0.001502]
[1730946834151,0.249872,75260.0,75259.0,0.001502]
[1730946834360,0.4462496,75260.0,75259.0,0.001502]
[1730946835019,1.9462496,75260.0,75259.0,0.001502]
[1730946835697,1.9602496,75260.0,75259.0,0.001502]
[1730946835906,1.91911302,75260.0,75259.0,0.001502]
[1730946836119,1.90511302,75260.0,75259.0,0.001502]
[1730946836743,2.03735579,75260.0,75259.0,0.001136]
[1730946837333,1.91911302,75260.0,75259.0,0.001136]
[1730946837549,1.99831302,75260.0,75259.0,0.001136]
[1730946837955,2.01231302,75260.0,75259.0,0.001136]
[1730946838165,1.98431302,75260.0,75259.0,0.001136]
[1730946838540,1.99831302,75260.0,75259.0,0.001136]
[1730946838743,1.86544102,75260.0,75259.0,0.001136]
[1730946838954,2.32844102,75260.0,75259.0,0.001136]
[1730946839338,2.34244102,75260.0,75259.0,0.001136]
[1730946839521,2.35644102,75260.0,75259.0,0.001136]
[1730946840148,2.34244102,75260.0,75259.0,0.001136]
[1730946840572,0.25985226,75254.0,75251.0,0.001502]
[1730946840783,0.39209328,75254.0,75251.0,0.001502]
[1730946841192,0.23224102,75254.0,75252.0,0.0762]
[1730946841419,1.73224102,75254.0,75251.0,0.001502]
[1730946841605,1.89209328,75254.0,75251.0,0.001502]
[1730946842193,1.88709328,75254.0,75251.0,0.001502]
[1730946843488,1.89209328,75254.0,75251.0,0.001502]
[1730946843952,1.88709328,75254.0,75251.0,0.001502]
[1730946844886,1.73224102,75254.0,75251.0,0.001502]
[1730946845147,1.76288501,75254.0,75251.0,0.001502]
[1730946848152,1.73224102,75254.0,75251.0,0.001502]
[1730946850283,1.6,75254.0,75251.0,0.001502]
[1730946850486,1.6,75254.0,75253.0,0.0880538]
[1730946850927,1.6,75254.0,75253.0,0.1347538]
[1730946852540,1.5,75254.0,75253.0,0.1347538]
[1730946854811,1.5,75254.0,75253.0,0.0880538]
[1730946855729,1.5,75254.0,75253.0,0.0064538]
[1730946859934,1.53067925,75254.0,75253.0,0.0064538]
[1730946861203,1.63067925,75254.0,75253.0,0.0064538]
[1730946862055,1.76292027,75254.0,75253.0,0.0064538]
[1730946862278,0.232906,75241.0,75240.0,0.02647757]
[1730946862519,0.5,75236.0,75226.0,0.015]
[1730946862945,0.15485226,75230.0,75229.0,0.001502]
[1730946863160,0.25485226,75230.0,75229.0,0.001502]
[1730946863377,0.38709328,75230.0,75229.0,0.001502]
[1730946863809,0.23224102,75230.0,75229.0,0.001502]
[1730946864033,0.24464531,75230.0,75229.0,0.001502]
[1730946864470,0.39949757,75230.0,75229.0,0.001502]
[1730946864960,1.89949757,75230.0,75229.0,0.001502]
[1730946865391,1.74464531,75230.0,75229.0,0.001502]
[1730946865815,1.5,75230.0,75229.0,0.001502]
[1730946867769,1.73224102,75230.0,75229.0,0.001502]
[1730946867951,1.6,75230.0,75229.0,0.001502]
[1730946869050,1.6307103,75230.0,75229.0,0.001502]
[1730946869940,1.6,75230.0,75229.0,0.001502]
[1730946870365,1.5,75230.0,75229.0,0.001502]
[1730946871007,0.5,75244.0,75229.0,0.001502]
[1730946871232,0.1978931,75245.0,75233.0,0.005]
[1730946871487,1.5,75243.0,75237.0,0.005]
[1730946871706,1.5,75243.0,75238.0,0.00992314]
[1730946871921,1.5,75243.0,75239.0,0.00992314]
[1730946872136,1.5,75243.0,75235.0,0.00992314]
[1730946872401,1.5,75243.0,75236.0,0.00992314]
[1730946872827,1.5,75243.0,75237.0,0.00992314]
[1730946873268,1.5,75243.0,75235.0,0.00992314]
[1730946873688,1.5,75243.0,75236.0,0.00992314]
[1730946873902,1.5,75243.0,75234.0,0.00992314]
[1730946874105,1.5,75243.0,75235.0,0.01492314]
[1730946874311,1.5,75243.0,75236.0,0.00992314]
[1730946874512,1.5,75243.0,75237.0,0.00992314]
[1730946874722,0.1978931,75242.0,75235.0,0.00992314]
[1730946874927,1.5,75243.0,75236.0,0.00992314]
[1730946875137,1.5,75243.0,75237.0,0.00992314]
[1730946875355,1.5,75243.0,75235.0,0.00992314]
[1730946875570,0.1978931,75242.0,75236.0,0.00992314]
[1730946875792,1.5,75243.0,75237.0,0.00992314]
[1730946876014,1.5,75243.0,75234.0,0.00992314]